fUSD/lending_fUSD_20250906
["ID","MTS","AMOUNT","RATE_DAILY","PERIOD"]
[383814887,1757127048170,-400.0,0.00065753,120]
[383814888,1757127048180,-400.0,0.00065753,120]
[383814889,1757127048191,-400.0,0.00065753,120]
[383814905,1757127048345,-400.0,0.00065753,120]
[383814907,1757127048372,-400.0,0.00065753,120]
[383814909,1757127048382,-400.0,0.00065753,120]
[383814911,1757127048391,-400.0,0.00065753,120]
[383814913,1757127048401,-400.0,0.00065753,120]
[383814915,1757127048410,-400.0,0.00065753,120]
[383814917,1757127048420,-400.0,0.00065753,120]
[383814919,1757127048429,-400.0,0.00065753,120]
[383814921,1757127048438,-403.79104641,0.00065753,120]
[383814923,1757127048448,-400.0,0.00065753,120]
[383814925,1757127048458,-400.0,0.00065753,120]
[383814927,1757127048467,-500.0,0.00065753,2]
[383814929,1757127048476,-400.0,0.00065753,120]
[383814931,1757127048487,-400.0,0.00065753,120]
[383814933,1757127048496,-544.22,0.00065753,120]
[383814935,1757127048506,-500.0,0.00065753,120]
[383814937,1757127048516,-500.0,0.00065753,120]
[383814939,1757127048525,-393.79341248,0.00065753,120]
[383814941,1757127048534,-400.0,0.00065753,120]
[383814943,1757127048545,-400.0,0.00065753,120]
[383814945,1757127048554,-400.0,0.00065753,120]
[383814947,1757127048564,-400.0,0.00065753,120]
[383814949,1757127048574,-400.0,0.00065753,120]
[383814951,1757127048583,-400.0,0.00065753,120]
[383814953,1757127048593,-400.0,0.00065753,120]
[383814955,1757127048602,-400.0,0.00065753,120]
[383814957,1757127048611,-174.47639816,0.00065753,120]
[383814959,1757127048621,-400.0,0.00065753,120]
[383814961,1757127048630,-400.0,0.00065753,120]
[383814963,1757127048640,-426.07,0.00065753,120]
[383814965,1757127048652,-426.07,0.00065753,120]
[383814967,1757127048662,-426.07,0.00065753,120]
[383814969,1757127048673,-400.0,0.00065753,120]
[383814971,1757127048683,-400.0,0.00065753,120]
[383814974,1757127048693,-462.16,0.00065753,120]
[383814976,1757127048703,-400.0,0.00065753,120]
[383814978,1757127048713,-400.0,0.00065753,120]
[383814980,1757127048723,-400.0,0.00065753,120]
[383814982,1757127048733,-400.0,0.00065753,120]
[383814984,1757127048743,-400.0,0.00065753,120]
[383814986,1757127048753,-410.10107919,0.00065753,120]
[383814988,1757127048764,-400.0,0.00065753,120]
[383814990,1757127048775,-400.0,0.00065753,120]
[383814992,1757127048786,-400.0,0.00065753,120]
[383814994,1757127048797,-400.0,0.00065753,120]
[383814996,1757127048807,-400.0,0.00065753,120]
[383814999,1757127048818,-400.0,0.00065753,120]
[383815001,1757127048828,-400.0,0.00065753,120]
[383815003,1757127048837,-400.0,0.00065753,120]
[383815005,1757127048846,-400.0,0.00065753,120]
[383815007,1757127048855,-445.80551313,0.00065753,120]
[383815009,1757127048865,-400.0,0.00065753,120]
[383815011,1757127048875,-400.0,0.00065753,120]
[383815013,1757127048885,-400.0,0.00065753,120]
[383815015,1757127048895,-400.0,0.00065753,120]
[383815017,1757127048904,-400.0,0.00065753,120]
[383815019,1757127048914,-400.0,0.00065753,120]
[383815021,1757127048924,-500.0,0.00065753,2]
[383815023,1757127048933,-400.0,0.00065753,120]
[383815025,1757127048943,-380.0,0.00065753,120]
[383815027,1757127048952,-400.0,0.00065753,120]
[383815029,1757127048962,-400.0,0.00065753,120]
[383815031,1757127048971,-400.0,0.00065753,120]
[383815033,1757127048981,-400.0,0.00065753,120]
[383815035,1757127048991,-400.0,0.00065753,120]
[383815037,1757127049000,-476.4633549,0.00065753,120]
[383815039,1757127049010,-400.0,0.00065753,120]
[383815041,1757127049020,-398.68203555,0.00065753,120]
[383815043,1757127049030,-400.0,0.00065753,120]
[383815045,1757127049039,-400.0,0.00065753,120]
[383815047,1757127049048,-405.26,0.00065753,120]
[383815049,1757127049058,-400.0,0.00065753,120]
[383815051,1757127049069,-400.0,0.00065753,120]
[383815053,1757127049078,-400.0,0.00065753,120]
[383815055,1757127049087,-400.0,0.00065753,120]
[383815057,1757127049096,-378.7400664,0.00065753,120]
[383815059,1757127049106,-435.91,0.00065753,120]
[383815061,1757127049121,-400.0,0.00065753,120]
[383815063,1757127049131,-400.0,0.00065753,120]
[383815065,1757127049140,-500.0,0.00065753,120]
[383815067,1757127049149,-400.0,0.00065753,120]
[383815069,1757127049159,-400.0,0.00065753,120]
[383815070,1757127049168,-213.84,0.00065753,120]
[383815073,1757127049178,-400.0,0.00065753,120]
[383815075,1757127049187,-400.0,0.00065753,120]
[383815077,1757127049197,-400.0,0.00065753,120]
[383815079,1757127049208,-400.0,0.00065753,120]
[383815081,1757127049217,-400.0,0.00065753,120]
[383815083,1757127049227,-400.0,0.00065753,120]
[383815085,1757127049237,-5000.0,0.00065753,120]
[383815087,1757127049247,-5000.0,0.00065753,120]
[383815089,1757127049256,-5000.0,0.00065753,120]
[383815091,1757127049266,-400.0,0.00065753,120]
[383815093,1757127049275,-500.0,0.00065753,2]
[383815094,1757127049285,-500.0,0.00065753,2]
[383815096,1757127049294,-400.0,0.00065753,120]
[383815098,1757127049303,-500.0,0.00065753,2]
[383815101,1757127049314,-391.34265813,0.00066,30]
[383815103,1757127049323,-300.0,0.00066011,120]
[383815105,1757127049333,-746.0,0.00066027,120]
[383815107,1757127049343,-150.0,0.000663,2]
[383815109,1757127049354,-746.0,0.00066301,120]
[383815111,1757127049364,-204.5,0.00066441,120]
[383815113,1757127049376,-500.0,0.00066457,120]
[383815115,1757127049386,-746.0,0.00066575,120]
[383815117,1757127049395,-703.94396155,0.00066664,120]
[383815119,1757127049405,-746.0,0.00066849,120]
[383815121,1757127049414,-150.0,0.0006709,2]
[383815123,1757127049424,-1608.0,0.000671,120]
[383815125,1757127049433,-746.0,0.00067123,120]
[383815127,1757127049443,-746.0,0.00067397,120]
[383815129,1757127049453,-1316.2,0.0006765,120]
[383815131,1757127049462,-746.0,0.00067671,120]
[383815133,1757127049471,-150.0,0.0006787,2]
[383815135,1757127049481,-3000.0,0.00067922,2]
[383815137,1757127049490,-746.0,0.00067945,120]
[383815139,1757127049500,-7812.7994635,0.0006795,15]
[383815141,1757127049509,-1254.48753858,0.00067983,15]
[383815143,1757127049519,-746.0,0.00068219,120]
[383815145,1757127049528,-746.0,0.00068493,120]
[383815147,1757127049537,-162.0,0.000685,120]
[383815149,1757127049547,-150.0,0.0006865,2]
[383815151,1757127049557,-167.41,0.00068675,2]
[383815153,1757127049568,-448.86,0.00068741,30]
[383815155,1757127049579,-746.0,0.00068767,120]
[383815157,1757127049588,-5000.0,0.000688,120]
[383815159,1757127049598,-4000.0,0.000688,120]
[383815161,1757127049607,-205.11,0.00068878,30]
[383815163,1757127049617,-5000.0,0.00069,120]
[383815165,1757127049627,-8000.0,0.00069,120]
[383815167,1757127049636,-8347.67624844,0.00069,4]
[383815169,1757127049646,-746.0,0.00069041,120]
[383815171,1757127049656,-500.0,0.00069044,120]
[383815173,1757127049665,-3128.39592043,0.00069291,2]
[383815175,1757127049675,-746.0,0.00069315,120]
[383815177,1757127049684,-400.0,0.00069389,120]
[383815179,1757127049694,-400.0,0.00069398,120]
[383815181,1757127049704,-400.0,0.00069398,120]
[383815183,1757127049714,-478.91682376,0.00069398,120]
[383815185,1757127049723,-400.0,0.00069398,14]
[383815187,1757127049732,-400.0,0.00069398,120]
[383815189,1757127049741,-400.0,0.00069398,120]
[383815191,1757127049751,-518.34150358,0.00069398,120]
[383815193,1757127049761,-426.93692998,0.00069399,120]
[383815195,1757127049771,-400.0,0.00069399,120]
[383815197,1757127049781,-400.0,0.00069399,120]
[383815199,1757127049790,-400.0,0.00069399,120]
[383815201,1757127049800,-400.0,0.00069399,120]
[383815203,1757127049809,-400.0,0.00069399,120]
[383815205,1757127049818,-400.0,0.00069399,120]
[383815207,1757127049828,-400.0,0.00069399,120]
[383815210,1757127049838,-327.77198124,0.00069399,120]
[383815211,1757127049847,-220.73917623,0.00069399,120]
[383815213,1757127049856,-400.0,0.00069399,120]
[383815215,1757127049866,-400.0,0.00069399,120]
[383815217,1757127049875,-1280.54,0.00069399,120]
[383815219,1757127049885,-400.0,0.00069399,120]
[383815221,1757127049895,-400.0,0.00069399,120]
[383815224,1757127049906,-400.0,0.00069399,120]
[383815225,1757127049916,-400.0,0.00069399,120]
[383815227,1757127049926,-400.0,0.00069399,120]
[383815230,1757127049936,-400.0,0.00069399,120]
[383815232,1757127049946,-211.45080724,0.00069399,120]
[383815234,1757127049957,-474.52,0.00069399,120]
[383815236,1757127049967,-428.62,0.00069399,120]
[383815238,1757127049977,-400.0,0.00069399,120]
[383815240,1757127049986,-400.0,0.00069399,120]
[383815241,1757127049996,-400.0,0.00069399,120]
[383815242,1757127050005,-400.0,0.00069399,120]
[383815243,1757127050015,-333.24819317,0.00069399,120]
[383815244,1757127050025,-400.0,0.00069399,120]
[383815245,1757127050035,-400.0,0.00069399,120]
[383815246,1757127050046,-534.72,0.00069399,120]
[383815247,1757127050056,-431.8780506,0.00069399,120]
[383815248,1757127050066,-400.0,0.00069399,120]
[383815249,1757127050076,-400.0,0.00069399,120]
[383815251,1757127050086,-400.0,0.00069399,120]
[383815253,1757127050096,-400.0,0.00069399,120]
[383815255,1757127050105,-400.0,0.00069399,120]
[383815257,1757127050115,-400.0,0.00069399,120]
[383815259,1757127050130,-400.0,0.00069399,120]
[383815261,1757127050139,-400.0,0.00069399,120]
[383815263,1757127050149,-400.0,0.00069399,120]
[383815265,1757127050158,-400.0,0.00069399,120]
[383815267,1757127050169,-406.42,0.00069399,120]
[383815269,1757127050179,-400.0,0.00069399,120]
[383815271,1757127050189,-400.0,0.00069399,120]
[383815273,1757127050201,-400.0,0.00069399,120]
[383815275,1757127050211,-400.0,0.00069399,120]
[383815277,1757127050221,-400.0,0.00069399,120]
[383815279,1757127050230,-400.0,0.00069399,120]
[383815282,1757127050241,-400.0,0.00069399,120]
[383815284,1757127050251,-400.0,0.00069399,120]
[383815285,1757127050261,-404.67,0.00069399,120]
[383815288,1757127050271,-400.0,0.00069399,120]
[383815290,1757127050281,-948.99,0.00069399,120]
[383815292,1757127050291,-173.45167453,0.00069399,120]
[383815294,1757127050300,-400.0,0.00069399,120]
[383815296,1757127050309,-426.07,0.00069399,120]
[383815298,1757127050318,-400.0,0.00069399,120]
[383815300,1757127050328,-400.0,0.00069399,120]
[383815302,1757127050339,-400.0,0.00069399,120]
[383815304,1757127050349,-5000.0,0.00069399,120]
[383815306,1757127050360,-400.0,0.0006944,120]
[383815308,1757127050371,-150.0,0.0006944,2]
[383815310,1757127050381,-180.51139,0.0006945,120]
[383815312,1757127050391,-1316.2,0.00069547,120]
[383815314,1757127050400,-746.0,0.00069589,120]
[383815316,1757127050410,-329.09375765,0.00069617,2]
[383815318,1757127050419,-7812.7994635,0.00069655,15]
[383815320,1757127050428,-672.79587461,0.00069688,120]
[383815322,1757127050438,-431.0,0.00069715,7]
[383815324,1757127050449,-3000.0,0.000698,120]
[383815326,1757127050458,-165.74901193,0.00069861,120]
[383815328,1757127050467,-746.0,0.00069863,120]
[383815330,1757127050478,-968.03880428,0.0006987,120]
[383815333,1757127050497,-968.03880428,0.0006987,120]
[383815335,1757127050509,-165.74901193,0.00069872,120]
[383815337,1757127050519,-3572.13718428,0.00069876,120]
[383815339,1757127050528,-1417.49827287,0.00069884,120]
[383815341,1757127050537,-1417.49827287,0.0006989,120]
[383815343,1757127050548,-968.03880428,0.00069893,120]
[383815345,1757127050557,-3572.13718428,0.00069897,120]
[383815347,1757127050567,-160.10530056,0.000699,120]
[383815349,1757127050577,-198.76064918,0.000699,120]
[383815351,1757127050587,-2272.44002284,0.000699,30]
[383815353,1757127050597,-2349.76870908,0.000699,2]
[383815355,1757127050607,-968.03880428,0.00069901,120]
[383815358,1757127050616,-165.74901193,0.00069907,120]
[383815359,1757127050626,-165.74901193,0.00069908,120]
[383815361,1757127050636,-3572.13718428,0.00069913,120]
[383815363,1757127050647,-1417.49827287,0.00069914,120]
[383815365,1757127050658,-3572.13718428,0.00069914,120]
[383815368,1757127050669,-165.74901193,0.00069918,120]
[383815370,1757127050679,-3572.13718428,0.00069925,120]
[383815372,1757127050688,-968.03880428,0.00069927,120]
[383815374,1757127050698,-364.7094971,0.00069929,6]
[383815383,1757127050776,-3572.13718428,0.0006993,120]
[383815386,1757127050788,-400.0,0.00069932,120]
[383815388,1757127050797,-400.0,0.00069932,14]
[383815390,1757127050806,-400.0,0.00069932,120]
[383815392,1757127050816,-400.0,0.00069932,120]
[383815394,1757127050825,-2446.3264913,0.00069933,6]
[383815396,1757127050834,-27449.1568601,0.00069933,6]
[383815398,1757127050843,-1417.49827287,0.00069943,120]
[383815400,1757127050853,-180.51138,0.0006995,120]
[383815402,1757127050863,-165.74901193,0.00069957,120]
[383815404,1757127050872,-1417.49827287,0.00069959,120]
[383815406,1757127050882,-1417.49827287,0.00069959,120]
[383815408,1757127050892,-968.03880428,0.00069969,120]
[383815409,1757127050902,-165.74901193,0.00069982,120]
[383815411,1757127050911,-3572.13718428,0.00069994,120]
[383815412,1757127050921,-1417.49827287,0.00069995,120]
[383815414,1757127050930,-400.0,0.00069998,120]
[383815416,1757127050939,-400.0,0.00069998,120]
[383815417,1757127050948,-400.0,0.00069998,120]
[383815419,1757127050958,-400.0,0.00069998,120]
[383815421,1757127050967,-400.0,0.00069998,120]
[383815422,1757127050976,-244.8870748,0.00069998,120]
[383815424,1757127050986,-400.0,0.00069998,120]
[383815426,1757127050996,-400.0,0.00069998,120]
[383815427,1757127051005,-400.0,0.00069998,120]
[383815429,1757127051014,-287.85456029,0.00069998,120]
[383815431,1757127051023,-1280.54,0.00069998,120]
[383815432,1757127051032,-484.24575347,0.00069998,120]
[383815434,1757127051041,-203.2554462,0.00069998,120]
[383815436,1757127051051,-400.0,0.00069998,120]
[383815437,1757127051060,-400.0,0.00069998,120]
[383815439,1757127051070,-400.0,0.00069998,120]
[383815441,1757127051079,-400.0,0.00069998,120]
[383815443,1757127051089,-400.0,0.00069998,120]
[383815445,1757127051098,-474.52,0.00069998,120]
[383815446,1757127051107,-270.98,0.00069998,120]
[383815448,1757127051116,-400.0,0.00069998,120]
[383815450,1757127051129,-400.0,0.00069998,120]
[383815451,1757127051138,-400.0,0.00069998,120]
[383815453,1757127051148,-400.0,0.00069998,120]
[383815455,1757127051158,-471.1567402,0.00069998,120]
[383815456,1757127051168,-400.0,0.00069998,120]
[383815458,1757127051177,-400.0,0.00069998,120]
[383815460,1757127051187,-400.0,0.00069998,120]
[383815462,1757127051198,-400.0,0.00069998,120]
[383815463,1757127051207,-400.0,0.00069998,120]
[383815465,1757127051216,-400.0,0.00069998,120]
[383815466,1757127051225,-400.0,0.00069998,120]
[383815468,1757127051235,-400.0,0.00069998,120]
[383815470,1757127051246,-400.0,0.00069998,120]
[383815472,1757127051256,-400.0,0.00069998,120]
[383815473,1757127051265,-330.64,0.00069998,120]
[383815475,1757127051274,-400.0,0.00069998,120]
[383815477,1757127051284,-400.0,0.00069998,120]
[383815479,1757127051293,-400.0,0.00069998,120]
[383815481,1757127051303,-400.0,0.00069998,120]
[383815482,1757127051312,-312.9050629,0.00069998,120]
[383815484,1757127051321,-169.53594172,0.00069998,120]
[383815486,1757127051331,-400.0,0.00069998,120]
[383815488,1757127051340,-400.0,0.00069998,14]
[383815489,1757127051350,-400.0,0.00069998,120]
[383815491,1757127051360,-999.0,0.00069998,120]
[383815493,1757127051370,-400.0,0.00069998,120]
[383815495,1757127051379,-948.99,0.00069998,120]
[383815497,1757127051390,-400.0,0.00069998,120]
[383815499,1757127051399,-426.07,0.00069998,120]
[383815500,1757127051409,-400.0,0.00069998,120]
[383815502,1757127051419,-400.0,0.00069998,120]
[383815504,1757127051429,-400.0,0.00069998,120]
[383815506,1757127051438,-400.0,0.00069998,120]
[383815508,1757127051447,-5000.0,0.00069998,120]
[383815509,1757127051457,-968.03880428,0.00069999,120]
[383815511,1757127051466,-300.0,0.00069999,60]
[383815513,1757127051476,-401.95470125,0.00069999,120]
[383815515,1757127051486,-400.0,0.00069999,120]
[383815517,1757127051495,-401.76402095,0.00069999,120]
[383815518,1757127051505,-395.19941012,0.00069999,120]
[383815520,1757127051514,-396.94390397,0.00069999,120]
[383815522,1757127051524,-400.0,0.00069999,120]
[383815524,1757127051533,-400.0,0.00069999,120]
[383815525,1757127051542,-400.0,0.00069999,120]
[383815528,1757127051555,-409.94741161,0.00069999,120]
[383815529,1757127051564,-401.33778397,0.00069999,120]
[383815531,1757127051573,-400.0,0.00069999,120]
[383815533,1757127051582,-400.0,0.00069999,120]
[383815535,1757127051591,-287.03847953,0.00069999,120]
[383815536,1757127051601,-400.0,0.00069999,120]
[383815538,1757127051611,-400.0,0.00069999,120]
[383815540,1757127051620,-400.0,0.00069999,120]
[383815542,1757127051630,-400.0,0.00069999,120]
[383815543,1757127051639,-400.0,0.00069999,120]
[383815545,1757127051647,-400.0,0.00069999,120]
[383815547,1757127051657,-400.0,0.00069999,120]
[383815549,1757127051666,-227.64610904,0.00069999,120]
[383815550,1757127051676,-400.0,0.00069999,120]
[383815552,1757127051685,-400.0,0.00069999,120]
[383815554,1757127051694,-400.0,0.00069999,120]
[383815556,1757127051705,-400.0,0.00069999,120]
[383815558,1757127051714,-400.0,0.00069999,120]
[383815559,1757127051723,-400.0,0.00069999,120]
[383815561,1757127051732,-400.0,0.00069999,120]
[383815563,1757127051741,-218.27863014,0.00069999,120]
[383815564,1757127051751,-400.0,0.00069999,120]
[383815566,1757127051761,-400.0,0.00069999,120]
[383815568,1757127051770,-400.0,0.00069999,120]
[383815570,1757127051779,-400.0,0.00069999,120]
[383815571,1757127051789,-400.0,0.00069999,120]
[383815573,1757127051798,-400.0,0.00069999,120]
[383815575,1757127051807,-335.62985641,0.00069999,120]
[383815577,1757127051818,-400.0,0.00069999,120]
[383815579,1757127051832,-400.0,0.00069999,120]
[383815581,1757127051842,-400.0,0.00069999,120]
[383815582,1757127051852,-400.0,0.00069999,120]
[383815584,1757127051862,-400.0,0.00069999,120]
[383815586,1757127051871,-463.86976103,0.00069999,120]
[383815588,1757127051881,-400.0,0.00069999,120]
[383815590,1757127051891,-400.0,0.00069999,120]
[383815591,1757127051900,-400.0,0.00069999,120]
[383815593,1757127051910,-400.0,0.00069999,120]
[383815595,1757127051919,-400.0,0.00069999,120]
[383815597,1757127051929,-400.0,0.00069999,120]
[383815598,1757127051941,-366.56901593,0.00069999,120]
[383815600,1757127051952,-400.0,0.00069999,120]
[383815602,1757127051962,-400.0,0.00069999,120]
[383815604,1757127051972,-400.0,0.00069999,120]
[383815605,1757127051982,-400.0,0.00069999,120]
[383815606,1757127051993,-400.0,0.00069999,120]
[383815607,1757127052002,-400.0,0.00069999,120]
[383815608,1757127052012,-400.0,0.00069999,120]
[383815609,1757127052022,-400.0,0.00069999,120]
[383815610,1757127052032,-400.0,0.00069999,120]
[383815611,1757127052041,-400.0,0.00069999,120]
[383815612,1757127052051,-400.0,0.00069999,120]
[383815613,1757127052060,-400.0,0.00069999,120]
[383815614,1757127052071,-285.90911795,0.00069999,120]
[383815615,1757127052081,-1280.54,0.00069999,120]
[383815616,1757127052091,-1280.54,0.00069999,120]
[383815617,1757127052102,-1280.54,0.00069999,120]
[383815619,1757127052111,-1280.54,0.00069999,120]
[383815621,1757127052125,-1280.54,0.00069999,120]
[383815623,1757127052135,-1280.54,0.00069999,120]
[383815625,1757127052144,-1280.54,0.00069999,120]
[383815627,1757127052155,-1280.54,0.00069999,120]
[383815629,1757127052167,-1280.54,0.00069999,120]
[383815631,1757127052177,-1280.54,0.00069999,120]
[383815633,1757127052187,-1280.54,0.00069999,120]
[383815635,1757127052197,-400.0,0.00069999,120]
[383815637,1757127052209,-400.0,0.00069999,120]
[383815639,1757127052220,-329.5196629,0.00069999,120]
[383815641,1757127052230,-400.0,0.00069999,120]
[383815643,1757127052240,-400.0,0.00069999,120]
[383815645,1757127052250,-400.0,0.00069999,120]
[383815647,1757127052260,-400.0,0.00069999,120]
[383815649,1757127052270,-400.0,0.00069999,120]
[383815651,1757127052280,-400.0,0.00069999,120]
[383815653,1757127052289,-400.0,0.00069999,120]
[383815655,1757127052299,-400.0,0.00069999,120]
[383815657,1757127052309,-400.0,0.00069999,120]
[383815659,1757127052319,-400.0,0.00069999,120]
[383815661,1757127052329,-482.85756414,0.00069999,120]
[383815663,1757127052339,-400.0,0.00069999,120]
[383815665,1757127052349,-400.0,0.00069999,120]
[383815667,1757127052359,-400.0,0.00069999,120]
[383815669,1757127052369,-400.0,0.00069999,120]
[383815671,1757127052379,-403.70876832,0.00069999,120]
[383815673,1757127052389,-400.0,0.00069999,120]
[383815675,1757127052399,-400.0,0.00069999,120]
[383815677,1757127052408,-400.0,0.00069999,120]
[383815679,1757127052418,-400.0,0.00069999,120]
[383815681,1757127052429,-400.0,0.00069999,120]
[383815683,1757127052438,-400.0,0.00069999,120]
[383815685,1757127052447,-400.0,0.00069999,120]
[383815687,1757127052457,-400.0,0.00069999,120]
[383815689,1757127052466,-400.0,0.00069999,120]
[383815691,1757127052476,-400.0,0.00069999,120]
[383815693,1757127052485,-400.0,0.00069999,120]
[383815695,1757127052496,-400.0,0.00069999,120]
[383815697,1757127052508,-400.0,0.00069999,120]
[383815699,1757127052518,-400.0,0.00069999,120]
[383815701,1757127052529,-400.0,0.00069999,120]
[383815703,1757127052538,-400.0,0.00069999,120]
[383815705,1757127052548,-400.0,0.00069999,120]
[383815707,1757127052558,-400.0,0.00069999,120]
[383815709,1757127052568,-400.0,0.00069999,120]
[383815711,1757127052578,-400.0,0.00069999,120]
[383815713,1757127052588,-400.0,0.00069999,120]
[383815715,1757127052598,-400.0,0.00069999,120]
[383815717,1757127052608,-400.0,0.00069999,120]
[383815719,1757127052617,-474.52,0.00069999,120]
[383815721,1757127052627,-474.52,0.00069999,120]
[383815723,1757127052637,-474.52,0.00069999,120]
[383815725,1757127052647,-474.52,0.00069999,120]
[383815728,1757127052657,-474.52,0.00069999,120]
[383815730,1757127052666,-474.52,0.00069999,120]
[383815732,1757127052676,-474.52,0.00069999,120]
[383815734,1757127052686,-474.52,0.00069999,120]
[383815736,1757127052696,-474.52,0.00069999,120]
[383815738,1757127052706,-474.52,0.00069999,120]
[383815740,1757127052717,-474.52,0.00069999,120]
[383815742,1757127052726,-400.0,0.00069999,120]
[383815744,1757127052736,-400.0,0.00069999,120]
[383815746,1757127052746,-400.0,0.00069999,120]
[383815748,1757127052756,-400.0,0.00069999,120]
[383815750,1757127052766,-243.09206498,0.00069999,120]
[383815752,1757127052775,-150.0,0.00069999,120]
[383815753,1757127052785,-400.0,0.00069999,120]
[383815754,1757127052795,-400.0,0.00069999,120]
[383815755,1757127052805,-400.0,0.00069999,120]
[383815756,1757127052814,-400.0,0.00069999,120]
[383815757,1757127052823,-400.0,0.00069999,120]
[383815758,1757127052833,-400.0,0.00069999,120]
[383815759,1757127052843,-400.0,0.00069999,120]
[383815760,1757127052854,-400.0,0.00069999,120]
[383815761,1757127052864,-400.0,0.00069999,120]
[383815762,1757127052875,-400.0,0.00069999,120]
[383815763,1757127052890,-400.0,0.00069999,120]
[383815764,1757127052903,-202.47695243,0.00069999,120]
[383815765,1757127052913,-400.0,0.00069999,120]
[383815766,1757127052923,-400.0,0.00069999,120]
[383815767,1757127052933,-400.0,0.00069999,120]
[383815768,1757127052944,-400.0,0.00069999,120]
[383815769,1757127052954,-400.0,0.00069999,120]
[383815770,1757127052965,-535.58451126,0.00069999,120]
[383815771,1757127052975,-400.0,0.00069999,120]
[383815772,1757127052985,-400.0,0.00069999,120]
[383815773,1757127052995,-400.0,0.00069999,120]
[383815774,1757127053005,-400.0,0.00069999,120]
[383815775,1757127053015,-400.0,0.00069999,120]
[383815776,1757127053025,-400.0,0.00069999,120]
[383815777,1757127053035,-400.0,0.00069999,120]
[383815778,1757127053045,-400.0,0.00069999,120]
[383815779,1757127053055,-400.0,0.00069999,120]
[383815780,1757127053068,-400.0,0.00069999,120]
[383815781,1757127053080,-400.0,0.00069999,120]
[383815782,1757127053092,-400.0,0.00069999,120]
[383815783,1757127053101,-400.0,0.00069999,120]
[383815784,1757127053112,-400.0,0.00069999,120]
[383815785,1757127053128,-400.0,0.00069999,120]
[383815786,1757127053139,-400.0,0.00069999,120]
[383815787,1757127053149,-400.0,0.00069999,120]
[383815788,1757127053161,-400.0,0.00069999,120]
[383815789,1757127053171,-400.0,0.00069999,120]
[383815790,1757127053181,-400.0,0.00069999,120]
[383815791,1757127053193,-400.0,0.00069999,120]
[383815792,1757127053205,-400.0,0.00069999,120]
[383815793,1757127053216,-400.0,0.00069999,120]
[383815794,1757127053226,-400.0,0.00069999,120]
[383815795,1757127053236,-400.0,0.00069999,120]
[383815796,1757127053246,-400.0,0.00069999,120]
[383815797,1757127053256,-400.0,0.00069999,120]
[383815798,1757127053267,-400.0,0.00069999,120]
[383815799,1757127053276,-400.0,0.00069999,120]
[383815800,1757127053287,-400.0,0.00069999,120]
[383815801,1757127053297,-400.0,0.00069999,120]
[383815802,1757127053307,-400.0,0.00069999,120]
[383815803,1757127053317,-400.0,0.00069999,120]
[383815804,1757127053327,-400.0,0.00069999,120]
[383815806,1757127053336,-400.0,0.00069999,120]
[383815808,1757127053346,-400.0,0.00069999,120]
[383815810,1757127053356,-400.0,0.00069999,120]